fUSD/lending_fUSD_20250513
["ID","MTS","AMOUNT","RATE_DAILY","PERIOD"]
[360951564,1747159950455,-483.53,0.00016986,2]
[360951565,1747159950466,-523.64,0.00016986,2]
[360951566,1747159950475,-2179.19,0.00016986,2]
[360951567,1747159950484,-933.31,0.00016986,2]
[360951568,1747159950493,-1454.44,0.00016986,2]
[360951569,1747159950503,-448.16,0.00016986,2]
[360951570,1747159950512,-669.67,0.00016986,2]
[360951571,1747159950523,-495.63,0.00016986,2]
[360951572,1747159950534,-407.59,0.00016986,2]
[360951573,1747159950543,-2557.8,0.00016986,2]
[360951574,1747159950552,-733.19,0.00016986,2]
[360951575,1747159950561,-1387.03,0.00016986,2]
[360951576,1747159950570,-1323.75,0.00016986,2]
[360951577,1747159950579,-639.94,0.00016986,2]
[360951578,1747159950588,-1956.5,0.00016986,2]
[360951579,1747159950597,-101544.96,0.00016986,2]
[360951580,1747159950606,-447.02,0.00016986,2]
[360951581,1747159950616,-2181.62,0.00016986,2]
[360951582,1747159950625,-707.87,0.00016986,2]
[360951583,1747159950634,-946.15,0.00016986,2]
[360951584,1747159950643,-809.14,0.00016986,2]
[360951585,1747159950652,-676.8,0.00016986,2]
[360951586,1747159950661,-1000.0,0.00017,2]
[360951587,1747159950670,-1000.0,0.00017,2]
[360951588,1747159950679,-250.0,0.00017,2]
[360951589,1747159950688,-250.0,0.00017,2]
[360951590,1747159950698,-931.0,0.00017,2]
[360951591,1747159950707,-628.0,0.00017,2]
[360951592,1747159950717,-442570.52550105,0.00017,2]
[360951593,1747159950726,-4071.95,0.00017021,2]
[360951594,1747159950735,-170.0,0.00017051,2]
[360951595,1747159950743,-170.0,0.00017051,2]
[360951596,1747159950753,-152.0,0.00017161,9]
[360951597,1747159950763,-1925.62,0.00017242,2]
[360951598,1747159950773,-2722.45089278,0.0001726,2]
[360951599,1747159950782,-917.02000057,0.0001726,2]
[360951600,1747159950791,-520.90916289,0.0001726,2]
[360951601,1747159950800,-506.47756574,0.0001726,2]
[360951602,1747159950810,-694.97745971,0.0001726,2]
[360951603,1747159950819,-626.50223026,0.0001726,2]
[360951604,1747159950828,-626.15126697,0.0001726,2]
[360951605,1747159950837,-463.47895283,0.0001726,2]
[360951606,1747159950847,-488.32147796,0.0001726,2]
[360951607,1747159950856,-657.57123598,0.0001726,2]
[360951608,1747159950865,-441.8,0.0001726,2]
[360951609,1747159950874,-645.28934375,0.0001726,2]
[360951610,1747159950884,-530.16949732,0.0001726,2]
[360951611,1747159950893,-852.34,0.0001726,2]
[360951612,1747159950902,-820.86836979,0.0001726,2]
[360951613,1747159950912,-621.90709655,0.0001726,2]
[360951614,1747159950921,-478.59303286,0.0001726,2]
[360951615,1747159950930,-405.00146302,0.0001726,2]
[360951616,1747159950940,-1162.05112415,0.0001726,2]
[360951617,1747159950949,-577.67,0.0001726,2]
[360951618,1747159950958,-1079.38359111,0.0001726,2]
[360951619,1747159950967,-426.26297973,0.0001726,2]
[360951620,1747159950976,-3487.7229804,0.0001726,2]
[360951621,1747159950985,-459.19426303,0.0001726,2]
[360951622,1747159950995,-444.42130098,0.0001726,2]
[360951623,1747159951004,-1738.37785598,0.0001726,2]
[360951624,1747159951013,-615.28812084,0.0001726,2]
[360951625,1747159951025,-420.91357193,0.0001726,2]
[360951626,1747159951035,-1176.6021458,0.0001726,2]
[360951627,1747159951044,-1437.41466264,0.0001726,2]
[360951628,1747159951053,-652.73655274,0.0001726,2]
[360951629,1747159951062,-488.35469218,0.0001726,2]
[360951630,1747159951071,-1273.13988102,0.0001726,2]
[360951631,1747159951080,-801.56932926,0.0001726,2]
[360951632,1747159951089,-789.08768718,0.0001726,2]
[360951633,1747159951098,-414.60420689,0.0001726,2]
[360951634,1747159951107,-542.49482388,0.0001726,2]
[360951635,1747159951117,-450.13335205,0.0001726,2]
[360951636,1747159951126,-426.49384911,0.0001726,2]
[360951637,1747159951136,-1871.83749292,0.0001726,2]
[360951638,1747159951145,-1359.71215212,0.0001726,2]
[360951639,1747159951154,-475.80106799,0.0001726,2]
[360951640,1747159951164,-472.90495467,0.0001726,2]
[360951641,1747159951175,-539.30703093,0.0001726,2]
[360951642,1747159951185,-1207.61618358,0.0001726,2]
[360951643,1747159951194,-1135.95508899,0.0001726,2]
[360951644,1747159951204,-1233.29265352,0.0001726,2]
[360951645,1747159951213,-657.79801185,0.0001726,2]
[360951646,1747159951223,-726.85620665,0.0001726,2]
[360951647,1747159951232,-1268.84162956,0.0001726,2]
[360951648,1747159951241,-530.20223553,0.0001726,2]
[360951649,1747159951250,-608.8683619,0.0001726,2]
[360951650,1747159951262,-457.93686892,0.0001726,2]
[360951651,1747159951275,-416.13018274,0.0001726,2]
[360951652,1747159951286,-996.0779669,0.0001726,2]
[360951653,1747159951298,-736.62651207,0.0001726,2]
[360951654,1747159951308,-411.38707631,0.0001726,2]
[360951655,1747159951320,-553.22835455,0.0001726,2]
[360951656,1747159951333,-2772.16837417,0.0001726,2]
[360951657,1747159951343,-547.99145415,0.0001726,2]
[360951658,1747159951353,-2640.39499487,0.0001726,2]
[360951659,1747159951363,-1191.51359114,0.0001726,2]
[360951660,1747159951372,-3074.23433538,0.0001726,2]
[360951661,1747159951381,-1798.36620429,0.0001726,2]
[360951662,1747159951390,-1044.14187074,0.0001726,2]
[360951663,1747159951399,-828.23886445,0.0001726,2]
[360951664,1747159951408,-1909.50549393,0.0001726,2]
[360951665,1747159951419,-2209.4,0.0001726,2]
[360951666,1747159951428,-2113.27107909,0.0001726,2]
[360951667,1747159951437,-1585.02086434,0.0001726,2]
[360951668,1747159951446,-894.4732194,0.0001726,2]
[360951669,1747159951456,-2266.36145838,0.0001726,2]
[360951670,1747159951465,-403.83303171,0.0001726,2]
[360951671,1747159951474,-591.42981143,0.0001726,2]
[360951672,1747159951484,-1157.86861972,0.0001726,2]
[360951673,1747159951493,-448.75395196,0.0001726,2]
[360951674,1747159951504,-2166.33192617,0.0001726,2]
[360951675,1747159951514,-2334.77679973,0.0001726,2]
[360951676,1747159951524,-3592.33168184,0.0001726,2]
[360951677,1747159951533,-414.93374653,0.0001726,2]
[360951678,1747159951542,-576.56024952,0.0001726,2]
[360951679,1747159951551,-529.32,0.0001726,2]
[360951680,1747159951561,-500.33045909,0.0001726,2]
[360951681,1747159951570,-1411.50755122,0.0001726,2]
[360951682,1747159951579,-445.91372772,0.0001726,2]
[360951683,1747159951588,-535.05481768,0.0001726,2]
[360951684,1747159951597,-706.76940675,0.0001726,2]
[360951685,1747159951606,-1060.30657172,0.0001726,2]
[360951686,1747159951615,-440.87375064,0.0001726,2]
[360951687,1747159951623,-782.91130279,0.0001726,2]
[360951688,1747159951632,-508.28309601,0.0001726,2]
[360951689,1747159951642,-785.1363022,0.0001726,2]
[360951690,1747159951651,-792.42537597,0.0001726,2]
[360951691,1747159951660,-1373.10804843,0.0001726,2]
[360951692,1747159951669,-507.35898724,0.0001726,2]
[360951693,1747159951678,-439.51709785,0.0001726,2]
[360951694,1747159951688,-836.06153717,0.0001726,2]
[360951695,1747159951697,-1203.34168762,0.0001726,2]
[360951696,1747159951706,-705.70067334,0.0001726,2]
[360951697,1747159951716,-573.66271075,0.0001726,2]
[360951698,1747159951725,-872.10328986,0.0001726,2]
[360951699,1747159951735,-265.12250021,0.0001726,2]
[360951700,1747159951744,-786.46031739,0.0001726,2]
[360951701,1747159951754,-801.217665,0.0001726,2]
[360951702,1747159951763,-1841.24503768,0.0001726,2]
[360951703,1747159951774,-522.17,0.0001726,2]
[360951704,1747159951783,-953.09411799,0.0001726,2]
[360951705,1747159951793,-440.13844606,0.0001726,2]
[360951706,1747159951802,-589.39036545,0.0001726,2]
[360951707,1747159951812,-689.99583578,0.0001726,2]
[360951708,1747159951821,-1040.39559325,0.0001726,2]
[360951709,1747159951831,-2832.95516792,0.0001726,2]
[360951710,1747159951841,-837.08977671,0.0001726,2]
[360951711,1747159951851,-722.78371453,0.0001726,2]
[360951712,1747159951860,-1518.81730264,0.0001726,2]
[360951713,1747159951870,-418.51345909,0.0001726,2]
[360951714,1747159951880,-538.73552807,0.0001726,2]
[360951715,1747159951890,-2035.79177707,0.0001726,2]
[360951716,1747159951899,-452.41,0.0001726,2]
[360951717,1747159951910,-699.02,0.0001726,2]
[360951718,1747159951920,-504.32523087,0.0001726,2]
[360951719,1747159951930,-928.98823088,0.0001726,2]
[360951720,1747159951939,-1636.76672244,0.0001726,2]
[360951721,1747159951949,-1883.33542733,0.0001726,2]
[360951722,1747159951958,-495.0811979,0.0001726,2]
[360951723,1747159951968,-610.46373502,0.0001726,2]
[360951724,1747159951978,-768.25,0.0001726,2]
[360951725,1747159951988,-768.89228671,0.0001726,2]
[360951726,1747159951998,-1014.12732471,0.0001726,2]
[360951727,1747159952009,-620.15207241,0.0001726,2]
[360951728,1747159952019,-1272.11641603,0.0001726,2]
[360951729,1747159952029,-756.76546301,0.0001726,2]
[360951730,1747159952039,-936.07256372,0.0001726,2]
[360951731,1747159952048,-1412.27663853,0.0001726,2]
[360951732,1747159952058,-539.95316342,0.0001726,2]
[360951733,1747159952068,-1632.89779731,0.0001726,2]
[360951734,1747159952076,-871.96548883,0.0001726,2]
[360951735,1747159952087,-451.4956074,0.0001726,2]
[360951736,1747159952096,-560.39,0.0001726,2]
[360951737,1747159952106,-2068.89043845,0.0001726,2]
[360951738,1747159952115,-570.3067266,0.0001726,2]
[360951739,1747159952125,-967.69134391,0.0001726,2]
[360951740,1747159952134,-1036.54665092,0.0001726,2]
[360951741,1747159952144,-445.06,0.0001726,2]
[360951742,1747159952154,-670.09801284,0.0001726,2]
[360951743,1747159952163,-680.69920331,0.0001726,2]
[360951744,1747159952174,-4665.45188547,0.0001726,2]
[360951745,1747159952186,-1314.35428815,0.0001726,2]
[360951746,1747159952195,-4184.07489167,0.0001726,2]
[360951747,1747159952204,-547.28763914,0.0001726,2]
[360951748,1747159952214,-579.60592071,0.0001726,2]
[360951749,1747159952224,-786.41219805,0.0001726,2]
[360951750,1747159952234,-1255.43401781,0.0001726,2]
[360951751,1747159952243,-2046.45210538,0.0001726,2]
[360951752,1747159952253,-577.52875146,0.0001726,2]
[360951753,1747159952263,-9519.37233602,0.0001726,2]
[360951754,1747159952275,-834.84167524,0.0001726,2]
[360951755,1747159952285,-1346.72463482,0.0001726,2]
[360951756,1747159952295,-2754.41830284,0.0001726,2]
[360951757,1747159952305,-10256.36068971,0.0001726,2]
[360951758,1747159952315,-487.29667612,0.0001726,2]
[360951759,1747159952325,-224.47456391,0.0001726,2]
[360951760,1747159952336,-2146.05077201,0.0001726,2]
[360951761,1747159952346,-778.77745636,0.0001726,2]
[360951762,1747159952355,-1086.4868584,0.0001726,2]
[360951763,1747159952365,-712.69737187,0.0001726,2]
[360951764,1747159952374,-1146.92340645,0.0001726,2]
[360951765,1747159952384,-427.20154482,0.0001726,2]
[360951766,1747159952394,-1787.87783135,0.0001726,2]
[360951767,1747159952404,-587.22416791,0.0001726,2]
[360951768,1747159952414,-2676.94670035,0.0001726,2]
[360951769,1747159952423,-936.82746613,0.0001726,2]
[360951770,1747159952433,-538.66323007,0.0001726,2]
[360951771,1747159952443,-570.75987234,0.0001726,2]
[360951772,1747159952454,-671.99712795,0.0001726,2]
[360951773,1747159952464,-1004.82057618,0.0001726,2]
[360951774,1747159952474,-583.88,0.0001726,2]
[360951775,1747159952484,-409.52828623,0.0001726,2]
[360951776,1747159952494,-628.2978541,0.0001726,2]
[360951777,1747159952504,-10626.11526192,0.0001726,2]
[360951778,1747159952514,-515.31985338,0.0001726,2]
[360951779,1747159952526,-6049.75036494,0.0001726,2]
[360951780,1747159952536,-1033.34214933,0.0001726,2]
[360951781,1747159952546,-437.23114091,0.0001726,2]
[360951782,1747159952555,-467.55724724,0.0001726,2]
[360951783,1747159952565,-569.71746399,0.0001726,2]
[360951784,1747159952574,-2264.96074166,0.0001726,2]
[360951785,1747159952585,-795.44821298,0.0001726,2]
[360951786,1747159952594,-405.25585714,0.0001726,2]
[360951787,1747159952604,-1277.3559233,0.0001726,2]
[360951788,1747159952614,-10483.32135591,0.0001726,2]
[360951789,1747159952623,-1585.36552437,0.0001726,2]
[360951790,1747159952634,-843.41654137,0.0001726,2]
[360951791,1747159952643,-1106.69756093,0.0001726,2]
[360951792,1747159952653,-413.48033791,0.0001726,2]
[360951793,1747159952664,-1973.30036595,0.0001726,2]
[360951794,1747159952674,-565.33,0.0001726,2]
[360951795,1747159952684,-1087.79444187,0.0001726,2]
[360951796,1747159952694,-2020.70831147,0.0001726,2]
[360951797,1747159952704,-686.20586502,0.0001726,2]
[360951798,1747159952714,-1760.51681816,0.0001726,2]
[360951799,1747159952724,-2493.50754766,0.0001726,2]
[360951800,1747159952734,-483.54523056,0.0001726,2]
[360951801,1747159952743,-523.87375975,0.0001726,2]
[360951802,1747159952753,-2179.35122244,0.0001726,2]
[360951803,1747159952763,-933.46123979,0.0001726,2]
[360951804,1747159952774,-1454.52499237,0.0001726,2]
[360951805,1747159952784,-669.84152632,0.0001726,2]
[360951806,1747159952794,-448.35379894,0.0001726,2]
[360951807,1747159952804,-495.64536565,0.0001726,2]
[360951808,1747159952814,-407.76063583,0.0001726,2]
[360951809,1747159952824,-2557.8767643,0.0001726,2]
[360951810,1747159952834,-733.37228343,0.0001726,2]
[360951811,1747159952844,-1387.14467443,0.0001726,2]
[360951812,1747159952854,-1323.82188239,0.0001726,2]
[360951813,1747159952864,-639.95659932,0.0001726,2]
[360951814,1747159952873,-1956.52468211,0.0001726,2]
[360951815,1747159952883,-101545.1297,0.0001726,2]
[360951816,1747159952894,-447.22915629,0.0001726,2]
[360951817,1747159952904,-2181.83940466,0.0001726,2]
[360951818,1747159952914,-708.02935981,0.0001726,2]
[360951819,1747159952924,-946.25127663,0.0001726,2]
[360951820,1747159952933,-809.1831278,0.0001726,2]
[360951821,1747159952944,-676.90287196,0.0001726,2]
[360951822,1747159952954,-182.30706357,0.0001728,2]
[360951823,1747159952964,-4072.0862651,0.00017295,2]
[360951824,1747159952975,-1000.0,0.000173,2]
[360951825,1747159952984,-59352.11,0.00017534,2]
[360951826,1747159952994,-152.0,0.00017644,10]
[360951827,1747159953004,-1000.0,0.000177,2]
[360951828,1747159953014,-408.93,0.00017751,2]
[360951829,1747159953024,-626.5,0.00017808,2]
[360951830,1747159953034,-206.17,0.00017885,7]
[360951831,1747159953044,-219.89,0.00017885,7]
[360951832,1747159953054,-170.0,0.00017893,7]
[360951833,1747159953064,-16923.70224791,0.00018,2]
[360951834,1747159953074,-15000.0,0.00018,3]
[360951835,1747159953084,-1150.10863026,0.00018,2]
[360951836,1747159953095,-1000.0,0.00018,2]
[360951837,1747159953105,-5662.68210151,0.00018,2]
[360951838,1747159953115,-200.0,0.00018,2]
[360951839,1747159953126,-24052.83238763,0.00018,2]
[360951840,1747159953136,-1720.26306423,0.000181,2]
[360951841,1747159953146,-152.0,0.00018127,11]
[360951842,1747159953157,-170.0,0.00018202,2]
[360951843,1747159953167,-150.0,0.00018202,2]
[360951844,1747159953181,-1000.0,0.000183,2]
[360951845,1747159953192,-67346.92,0.00018356,2]
[360951846,1747159953202,-1000.0,0.000185,2]
[360951847,1747159953213,-21047.79213623,0.000185,5]
[360951848,1747159953223,-15000.0,0.000185,3]
[360951849,1747159953233,-152.0,0.0001861,12]
[360951850,1747159953243,-1000.0,0.000187,2]
[360951851,1747159953254,-1000.0,0.00018748,3]
[360951852,1747159953264,-153.32920851,0.000189,2]
[360951853,1747159953275,-501.12336619,0.00019,2]
[360951854,1747159953286,-15000.0,0.00019,4]
[360951855,1747159953296,-21100.0,0.00019,2]
[360951856,1747159953306,-4005.21205741,0.00019,2]
[360951857,1747159953317,-500.0,0.00019,2]
[360951858,1747159953328,-1415.24238802,0.00019,2]
[360951859,1747159953340,-1415.24238802,0.00019,2]
[360951860,1747159953350,-1415.24238802,0.00019,2]
[360951861,1747159953360,-300.0,0.00019,2]
[360951862,1747159953371,-300.0,0.00019,2]
[360951863,1747159953382,-137719.6873847,0.00019,2]
[360951864,1747159953393,-137719.6873847,0.00019,2]
[360951865,1747159953404,-137719.6873847,0.00019,2]
[360951866,1747159953415,-137719.6873847,0.00019,2]
[360951867,1747159953427,-137719.6873847,0.00019,2]
[360951868,1747159953439,-1454.73267236,0.00019,2]
[360951869,1747159953451,-1454.73267236,0.00019,2]
[360951870,1747159953462,-1454.73267236,0.00019,2]
[360951871,1747159953474,-239.767776,0.00019,2]
[360951872,1747159953485,-345.33036551,0.0001901,7]
[360951873,1747159953497,-152.0,0.00019093,13]
[360951874,1747159953508,-236.0,0.000191,2]
[360951875,1747159953520,-995.7,0.000191,2]
[360951876,1747159953536,-374.0,0.000191,2]
[360951877,1747159953547,-765.0,0.000191,2]
[360951878,1747159953558,-148443.32552121,0.00019177,2]
[360951879,1747159953569,-22870.28876463,0.00019177,2]
[360951880,1747159953580,-400.0,0.00019178,2]
[360951881,1747159953591,-161.46878987,0.00019178,2]
[360951882,1747159953602,-626.5,0.00019178,2]
[360951883,1747159953613,-2000.0,0.00019178,2]
[360951884,1747159953624,-78347.09,0.00019178,2]
[360951885,1747159953635,-78347.09,0.00019178,2]
[360951886,1747159953646,-78347.09,0.00019178,2]
[360951887,1747159953657,-78347.09,0.00019178,2]
[360951888,1747159953667,-78347.09,0.00019178,2]
[360951889,1747159953678,-78347.09,0.00019178,2]
[360951890,1747159953689,-78347.09,0.00019178,2]
[360951891,1747159953699,-78347.09,0.00019178,2]
[360951892,1747159953711,-78347.09,0.00019178,2]
[360951893,1747159953722,-78347.09,0.00019178,2]
[360951894,1747159953733,-78347.09,0.00019178,2]
[360951895,1747159953744,-78347.09,0.00019178,2]
[360951896,1747159953754,-78347.09,0.00019178,2]
[360951897,1747159953765,-78347.09,0.00019178,2]
[360951898,1747159953776,-78347.09,0.00019178,2]
[360951899,1747159953788,-78347.09,0.00019178,2]
[360951900,1747159953798,-78347.09,0.00019178,2]
[360951901,1747159953809,-78347.09,0.00019178,2]
[360951902,1747159953820,-78347.09,0.00019178,2]
[360951903,1747159953831,-78347.09,0.00019178,2]
[360951904,1747159953842,-78347.09,0.00019178,2]
[360951905,1747159953854,-78347.09,0.00019178,2]
[360951906,1747159953865,-78347.09,0.00019178,2]
[360951907,1747159953876,-78347.28749445,0.00019178,2]
[360951908,1747159953887,-500.0,0.00019178,2]
[360951909,1747159953897,-637.20939236,0.00019178,2]
[360951910,1747159953908,-500.0,0.00019178,2]
[360951911,1747159953919,-500.0,0.00019178,2]
[360951912,1747159953930,-573.0,0.00019178,2]
[360951913,1747159953941,-573.0,0.00019178,2]
[360951914,1747159953952,-573.0,0.00019178,2]
[360951915,1747159953963,-312.0,0.00019178,2]
[360951916,1747159953973,-312.0,0.00019178,2]
[360951917,1747159953984,-312.0,0.00019178,2]
[360951918,1747159953996,-312.0,0.00019178,2]
[360951919,1747159954007,-312.0,0.00019178,2]
[360951920,1747159954018,-312.0,0.00019178,2]
[360951921,1747159954030,-312.0,0.00019178,2]
[360951922,1747159954042,-312.0,0.00019178,2]
[360951923,1747159954052,-312.0,0.00019178,2]
[360951924,1747159954063,-312.0,0.00019178,2]
[360951925,1747159954074,-312.0,0.00019178,2]
[360951926,1747159954084,-573.0,0.00019178,2]
[360951927,1747159954094,-573.0,0.00019178,2]
[360951928,1747159954104,-573.0,0.00019178,2]
[360951929,1747159954114,-573.0,0.00019178,2]
[360951930,1747159954124,-573.0,0.00019178,2]
[360951931,1747159954134,-573.0,0.00019178,2]
[360951932,1747159954144,-573.0,0.00019178,2]
[360951933,1747159954155,-573.0,0.00019178,2]
[360951934,1747159954166,-573.0,0.00019178,2]
[360951935,1747159954178,-573.0,0.00019178,2]
[360951936,1747159954189,-573.0,0.00019178,2]
[360951937,1747159954452,-573.0,0.00019178,2]
[360951938,1747159954462,-573.0,0.00019178,2]
[360951939,1747159954471,-573.0,0.00019178,2]
[360951940,1747159954481,-312.0,0.00019178,2]
[360951941,1747159954490,-312.0,0.00019178,2]
[360951942,1747159954500,-312.0,0.00019178,2]
[360951943,1747159954510,-312.0,0.00019178,2]
[360951944,1747159954519,-312.0,0.00019178,2]
[360951945,1747159954530,-312.0,0.00019178,2]
[360951946,1747159954540,-312.0,0.00019178,2]
[360951947,1747159954549,-312.0,0.00019178,2]
[360951948,1747159954572,-312.0,0.00019178,2]
[360951949,1747159954581,-312.0,0.00019178,2]
[360951950,1747159954591,-312.0,0.00019178,2]
[360951951,1747159954600,-312.0,0.00019178,2]
[360951952,1747159954610,-312.0,0.00019178,2]
[360951953,1747159954620,-312.0,0.00019178,2]
[360951954,1747159954630,-573.0,0.00019178,2]
[360951955,1747159954639,-573.0,0.00019178,2]
[360951956,1747159954650,-573.0,0.00019178,2]
[360951957,1747159954659,-573.0,0.00019178,2]
[360951958,1747159954668,-573.0,0.00019178,2]
[360951959,1747159954678,-573.0,0.00019178,2]
[360951960,1747159954687,-573.0,0.00019178,2]
[360951961,1747159954696,-573.0,0.00019178,2]
[360951962,1747159954706,-573.0,0.00019178,2]
[360951963,1747159954715,-573.0,0.00019178,2]
[360951964,1747159954724,-573.0,0.00019178,2]
[360951965,1747159954733,-573.0,0.00019178,2]
[360951966,1747159954743,-573.0,0.00019178,2]
[360951967,1747159954753,-312.0,0.00019178,2]
[360951968,1747159954763,-312.0,0.00019178,2]
[360951969,1747159954773,-312.0,0.00019178,2]
[360951970,1747159954782,-312.0,0.00019178,2]
[360951971,1747159954792,-312.0,0.00019178,2]
[360951972,1747159954802,-312.0,0.00019178,2]
[360951973,1747159954811,-312.0,0.00019178,2]
[360951974,1747159954820,-312.0,0.00019178,2]
[360951975,1747159954830,-312.0,0.00019178,2]
[360951976,1747159954840,-312.0,0.00019178,2]
[360951977,1747159954849,-312.0,0.00019178,2]
[360951978,1747159954859,-312.0,0.00019178,2]
[360951979,1747159954868,-312.0,0.00019178,2]
[360951980,1747159954878,-576.0,0.00019178,2]
[360951981,1747159954887,-4000.0,0.00019178,2]
[360951982,1747159954897,-250.708284,0.00019178,2]
[360951983,1747159954906,-250.708284,0.00019178,2]
[360951984,1747159954916,-250.708284,0.00019178,2]
[360951985,1747159954925,-250.708284,0.00019178,2]
[360951986,1747159954935,-250.708284,0.00019178,2]
[360951987,1747159954944,-250.708284,0.00019178,2]
[360951988,1747159954953,-250.708284,0.00019178,2]
[360951989,1747159954963,-250.708284,0.00019178,2]
[360951990,1747159954973,-250.708284,0.00019178,2]
[360951991,1747159954983,-250.708284,0.00019178,2]
[360951992,1747159954992,-250.708284,0.00019178,2]
[360951993,1747159955002,-250.708284,0.00019178,2]
[360951994,1747159955011,-250.708284,0.00019178,2]
[360951995,1747159955022,-250.708284,0.00019178,2]
[360951996,1747159955032,-250.708284,0.00019178,2]
[360951997,1747159955041,-250.708284,0.00019178,2]
[360951998,1747159955051,-250.708284,0.00019178,2]
[360951999,1747159955061,-250.708284,0.00019178,2]
[360952000,1747159955071,-250.708284,0.00019178,2]
[360952001,1747159955080,-250.708284,0.00019178,2]
[360952002,1747159955090,-290.167904,0.00019178,2]
[360952003,1747159955099,-290.167904,0.00019178,2]
[360952004,1747159955109,-290.167904,0.00019178,2]
[360952005,1747159955118,-290.167904,0.00019178,2]
[360952006,1747159955129,-290.167904,0.00019178,2]
[360952007,1747159955138,-290.167904,0.00019178,2]
[360952008,1747159955148,-290.167904,0.00019178,2]
[360952009,1747159955157,-290.167904,0.00019178,2]
[360952010,1747159955167,-290.167904,0.00019178,2]
[360952011,1747159955178,-290.167904,0.00019178,2]
[360952012,1747159955188,-290.167904,0.00019178,2]
[360952013,1747159955199,-290.167904,0.00019178,2]
[360952014,1747159955208,-290.167904,0.00019178,2]
[360952015,1747159955218,-290.167904,0.00019178,2]
[360952016,1747159955229,-290.167904,0.00019178,2]
[360952017,1747159955239,-290.167904,0.00019178,2]
[360952018,1747159955249,-290.167904,0.00019178,2]
[360952019,1747159955260,-290.167904,0.00019178,2]
[360952020,1747159955271,-290.167904,0.00019178,2]
[360952021,1747159955281,-290.167914,0.00019178,2]
[360952022,1747159955290,-151.0,0.00019178,2]
[360952023,1747159955299,-272.429727,0.00019178,2]
[360952024,1747159955309,-666.0,0.00019178,2]
[360952025,1747159955319,-666.0,0.00019178,2]
[360952026,1747159955329,-666.0,0.00019178,2]
[360952027,1747159955338,-666.0,0.00019178,2]
[360952028,1747159955348,-666.0,0.00019178,2]
[360952029,1747159955358,-666.0,0.00019178,2]
[360952030,1747159955367,-666.0,0.00019178,2]
[360952031,1747159955377,-666.0,0.00019178,2]
[360952032,1747159955386,-666.0,0.00019178,2]
[360952033,1747159955395,-666.0,0.00019178,2]
[360952034,1747159955405,-666.0,0.00019178,2]
[360952035,1747159955414,-610.65520141,0.00019178,2]
[360952036,1747159955425,-643.46,0.00019178,2]
[360952037,1747159955434,-1500.0,0.00019178,7]
[360952038,1747159955443,-1500.0,0.00019178,7]
[360952039,1747159955453,-1500.0,0.00019178,7]
[360952040,1747159955463,-1500.0,0.00019178,7]
[360952041,1747159955472,-1500.0,0.00019178,7]
[360952042,1747159955481,-873.896278,0.00019178,7]
[360952043,1747159955492,-1500.0,0.00019178,2]
[360952044,1747159955503,-1000.0,0.00019178,2]
[360952045,1747159955513,-1000.0,0.00019178,2]
[360952046,1747159955523,-1000.0,0.00019178,2]
[360952047,1747159955532,-1000.0,0.00019178,2]
[360952048,1747159955542,-1000.0,0.00019178,2]
[360952049,1747159955551,-498.54204447,0.00019178,2]
[360952050,1747159955561,-1000.0,0.00019178,2]
[360952051,1747159955570,-1000.0,0.00019178,2]
[360952052,1747159955579,-1000.0,0.00019178,2]
[360952053,1747159955588,-1000.0,0.00019178,2]
[360952054,1747159955599,-1000.0,0.00019178,2]
[360952055,1747159955609,-1000.0,0.00019178,2]
[360952056,1747159955619,-514.05611639,0.00019178,2]
[360952057,1747159955628,-1000.0,0.00019178,2]
[360952058,1747159955639,-1029.16074878,0.00019178,2]
[360952059,1747159955648,-1000.0,0.00019178,2]
[360952060,1747159955658,-610.99604894,0.00019178,2]
[360952061,1747159955667,-1000.0,0.00019178,2]
[360952062,1747159955677,-1000.0,0.00019178,2]
[360952063,1747159955686,-1096.53007085,0.00019178,2]